bitfinex-derivatives/quotes_SOLF0:USTF0_20250411
["timestamp","ask_amount","ask_price","bid_price","bid_amount"]
[1744352133184,8.5484,117.06,117.05,0.05649807]
[1744352133680,45.9478,117.07,117.05,0.05649807]
[1744352134481,37.4,117.07,117.05,0.05649807]
[1744352136089,37.4,117.07,117.05,8.60559807]
[1744352138393,45.9477,117.07,117.05,0.05649807]
[1744352138793,37.4,117.07,117.05,0.05649807]
[1744352138994,37.4,117.07,117.05,8.60559807]
[1744352139293,37.4,117.07,117.05,0.05649807]
[1744352139497,45.9477,117.07,117.05,0.05649807]
[1744352140298,37.4,117.07,117.05,0.05649807]
[1744352140899,45.9477,117.07,117.05,0.05649807]
[1744352143000,37.4,117.07,117.05,8.60549807]
[1744352143192,37.4,117.07,117.05,0.05649807]
[1744352143990,44.20418129,117.07,117.05,0.05649807]
[1744352144691,8.5484,117.06,117.05,0.05649807]
[1744352145302,8.5514,117.02,116.98,11.15798129]
[1744352145502,8.5514,117.02,116.99,12.40029001]
[1744352145700,8.5514,117.02,116.98,13.31048129]
[1744352145904,8.5514,117.02,116.99,17.0245051]
[1744352146094,8.5514,117.02,116.99,8.5531]
[1744352146395,15.35508129,117.03,116.99,8.5531]
[1744352146600,6.86184569,117.02,117.0,8.58580535]
[1744352146799,15.41354569,117.02,117.0,8.58580535]
[1744352147101,43.90418129,117.01,116.99,0.05942482]
[1744352147301,37.1,117.01,116.99,0.05942482]
[1744352147695,8.5528,117.0,116.99,0.05942482]
[1744352149000,8.5543,116.98,116.95,10.7891]
[1744352149202,45.6543,116.98,116.96,12.44025272]
[1744352149502,37.1,116.98,116.97,17.09580904]
[1744352149701,37.1,116.98,116.97,8.60377733]
[1744352150002,37.1,116.98,116.95,10.7891]
[1744352150301,37.1,116.98,116.96,17.16026336]
[1744352150502,37.1,116.98,116.96,8.66587236]
[1744352151002,8.555,116.97,116.96,0.0576053]
[1744352153294,8.5572,116.94,116.91,10.7565]
[1744352153901,8.5572,116.94,116.91,8.5591]
[1744352154098,8.5572,116.94,116.9,8.5597]
[1744352154396,8.6228731,116.93,116.9,8.62369729]
[1744352154998,0.0647731,116.93,116.9,8.62369729]
[1744352155705,8.6226731,116.93,116.9,8.62369729]
[1744352156099,37.12,116.92,116.9,8.62369729]
[1744352158208,37.12,116.92,116.9,0.06399729]
[1744352159398,8.5594,116.91,116.9,0.06399729]
[1744352159595,37.12,116.92,116.9,0.06399729]
[1744352160007,45.679,116.92,116.9,0.06399729]
[1744352160209,37.12,116.92,116.9,0.06399729]
[1744352160599,0.0647731,116.93,116.9,0.06399729]
[1744352160600,0.0647731,116.93,116.91,8.5589]
[1744352161704,8.6228731,116.93,116.9,8.62379729]
[1744352162208,37.12,116.92,116.9,8.62379729]
[1744352162905,37.12,116.92,116.9,0.06399729]
[1744352163304,37.12,116.92,116.9,8.62399729]
[1744352163504,37.12,116.92,116.9,0.06399729]
[1744352164509,37.12,116.92,116.9,8.62409729]
[1744352165110,37.12,116.92,116.91,8.5594]
[1744352165309,37.12,116.92,116.9,0.06399729]
[1744352166311,37.12,116.92,116.9,8.62359729]
[1744352166507,37.12,116.92,116.9,0.06399729]
[1744352168010,37.12,116.92,116.9,8.62389729]
[1744352168605,45.6786,116.92,116.9,0.06399729]
[1744352170010,15.38248407,116.91,116.9,0.06399729]
[1744352170307,6.82308407,116.91,116.86,2.1142]
[1744352170505,6.82308407,116.89,116.86,2.1142]
[1744352170706,36.26,116.88,116.86,2.1142]
[1744352171310,36.31728718,116.88,116.86,10.6771]
[1744352171502,36.31728718,116.88,116.86,10.74024214]
[1744352171707,36.31728718,116.88,116.86,2.17734214]
[1744352172007,36.31728718,116.88,116.86,10.73974214]
[1744352173311,36.31728718,116.88,116.86,8.62554214]
[1744352173907,36.26,116.92,116.86,0.06314214]
[1744352174110,36.26,116.92,116.87,2.2327]
[1744352175115,0.06133501,116.91,116.89,8.5605]
[1744352175514,0.06133501,116.91,116.89,8.61996134]
[1744352176815,8.62073501,116.91,116.89,0.05946134]
[1744352177003,0.06133501,116.91,116.89,0.05946134]
[1744352177508,0.06133501,116.91,116.9,8.5601]
[1744352177811,0.06133501,116.91,116.89,0.05946134]
[1744352178114,0.06133501,116.91,116.89,8.61996134]
[1744352178317,0.06133501,116.91,116.89,0.05946134]
[1744352178809,8.62103501,116.91,116.89,0.05946134]
[1744352179918,0.06133501,116.91,116.89,8.62026134]
[1744352180718,0.06133501,116.91,116.89,0.05946134]
[1744352181622,0.06133501,116.91,116.89,8.61996134]
[1744352184826,8.62093501,116.91,116.89,0.05946134]
[1744352185025,0.06133501,116.91,116.89,0.05946134]
[1744352185523,8.5601,116.9,116.89,0.05946134]
[1744352186720,8.5632,116.86,116.84,2.1584]
[1744352187027,36.26,116.87,116.84,2.1584]
[1744352187325,44.822,116.88,116.85,8.5632]
[1744352188125,0.05976715,116.88,116.86,8.5627]
[1744352189224,0.05976715,116.88,116.85,4.48437312]
[1744352189429,0.05976715,116.88,116.86,8.5011021]
[1744352189621,44.8204,116.9,116.85,4.48437312]
[1744352189821,44.8204,116.9,116.87,8.5623]
[1744352190122,36.26,116.9,116.86,8.61170326]
[1744352190325,36.26,116.9,116.88,8.5612]
[1744352190625,36.314102,116.9,116.88,8.5612]
[1744352190825,36.314102,116.9,116.88,0.05425902]
[1744352191216,0.054102,116.9,116.88,0.05425902]
[1744352191521,0.054102,116.9,116.89,8.5608]
[1744352191721,0.054102,116.9,116.89,17.18221058]
[1744352192022,0.054102,116.9,116.89,25.69182792]
[1744352192223,0.054102,116.9,116.89,8.62141058]
[1744352192423,43.13715356,116.9,116.89,8.62141058]
[1744352192825,36.314102,116.9,116.89,8.62141058]
[1744352193026,36.314102,116.9,116.88,0.05425902]
[1744352193523,36.314102,116.9,116.89,8.5608]
[1744352193723,0.054102,116.9,116.89,25.71419587]
[1744352193919,43.30305156,116.93,116.89,27.97159587]
[1744352194228,51.86125156,116.93,116.9,17.19258987]
[1744352194429,6.82305156,116.92,116.9,8.63268987]
[1744352194830,6.82305156,116.92,116.89,2.2574]
[1744352195022,6.88739487,116.92,116.89,2.2574]
[1744352195217,0.06434331,116.92,116.9,8.53246347]
[1744352195422,0.06434331,116.92,116.89,2.2574]
[1744352195828,0.06434331,116.92,116.9,17.09262885]
[1744352196027,0.06434331,116.92,116.9,8.5596]
[1744352197030,0.06434331,116.92,116.91,8.54063801]
[1744352197329,0.06434331,116.92,116.91,17.19758735]
[1744352198928,0.06434331,116.92,116.91,29.73089347]
[1744352199128,0.06434331,116.92,116.91,21.17149347]
[1744352199430,0.06434331,116.92,116.91,21.17706333]
[1744352200225,0.06434331,116.92,116.91,29.73646333]
[1744352201130,0.06434331,116.92,116.91,21.17706333]
[1744352201426,0.06434331,116.92,116.91,21.17298368]
[1744352201831,0.06434331,116.92,116.91,29.73238368]
[1744352202331,0.06434331,116.92,116.91,21.17298368]
[1744352202922,0.06434331,116.92,116.91,17.19907756]
[1744352203123,0.06434331,116.92,116.91,21.17080125]
[1744352204227,8.62294331,116.92,116.91,21.17080125]
[1744352204525,8.62294331,116.92,116.91,17.19907756]
[1744352205827,0.06434331,116.92,116.91,17.19907756]
[1744352206130,0.06434331,116.92,116.91,21.1695829]
[1744352206520,0.06434331,116.92,116.91,21.16733756]
[1744352206726,0.06434331,116.92,116.91,17.19683222]
[1744352208728,15.44599487,116.92,116.91,17.19738635]
[1744352208934,15.44599487,116.92,116.91,8.65694934]
[1744352209531,8.56,116.91,116.89,2.2574]
[1744352209734,6.82305156,116.9,116.88,0.05425902]
[1744352210034,6.82305156,116.9,116.89,8.54482213]
[1744352210329,6.82305156,116.9,116.88,0.05425902]
[1744352210535,51.86365156,116.9,116.88,0.05425902]
[1744352210736,43.30305156,116.9,116.88,0.05425902]
[1744352211435,51.86355156,116.9,116.88,0.05425902]
[1744352211639,43.30305156,116.9,116.88,0.05425902]
[1744352211938,8.5608,116.89,116.88,0.05425902]
[1744352212231,15.38385156,116.89,116.88,8.71389002]
[1744352212634,15.38385156,116.89,116.88,0.05425902]
[1744352213030,6.82305156,116.89,116.84,50.76998116]
[1744352213237,15.38575156,116.87,116.85,8.55123849]
[1744352213435,51.86575156,116.87,116.84,4.3317]
[1744352213733,51.86575156,116.87,116.85,8.54821721]
[1744352213934,51.86575156,116.87,116.84,4.3317]
[1744352214135,6.82305156,116.85,116.82,2.25]
[1744352214326,6.82305156,116.85,116.84,0.06021193]
[1744352214531,6.82305156,116.85,116.84,8.61108776]
[1744352214730,15.38725156,116.85,116.84,8.61108776]
[1744352214932,15.38725156,116.85,116.84,17.27366016]
[1744352215645,36.54410303,116.87,116.84,21.24537316]
[1744352215833,36.54410303,116.87,116.85,12.52097437]
[1744352216035,36.54410303,116.87,116.86,17.21344823]
[1744352216539,45.10670303,116.87,116.86,17.21344823]
[1744352216740,45.10670303,116.87,116.86,21.18306022]
[1744352217628,36.54410303,116.87,116.86,21.18306022]
[1744352218337,45.10640303,116.87,116.86,21.18306022]
[1744352218540,45.10640303,116.87,116.86,17.21344823]
[1744352218841,45.10640303,116.87,116.86,21.18078573]
[1744352219437,45.10640303,116.87,116.86,12.51821333]
[1744352219642,45.10640303,116.87,116.86,17.19425307]
[1744352219837,36.54410303,116.87,116.86,17.19425307]
[1744352220248,36.54410303,116.87,116.86,21.16023581]
[1744352221233,43.36715459,116.87,116.86,17.19425307]
[1744352221443,45.10640303,116.87,116.86,17.19425307]
[1744352222441,45.10640303,116.87,116.86,17.17945013]
[1744352222844,51.92945459,116.87,116.86,17.17945013]
[1744352224551,51.92945459,116.87,116.86,8.64337724]
[1744352227241,15.38675156,116.85,116.84,0.06021193]
[1744352230658,8.5645,116.84,116.79,46.43828116]
[1744352230950,6.82305156,116.83,116.8,12.49068496]
[1744352231149,8.566,116.82,116.81,8.52625688]
[1744352231338,6.82305156,116.83,116.81,8.52625688]
[1744352231538,6.82305156,116.83,116.79,48.52658116]
[1744352231751,0.05966692,116.82,116.8,12.55468612]
[1744352231945,0.05966692,116.82,116.8,0.06565698]
[1744352232849,8.62586692,116.82,116.8,0.06565698]
[1744352233250,0.05966692,116.82,116.8,0.06565698]
[1744352233550,35.64,116.84,116.81,15.34160315]
[1744352233752,35.64,116.84,116.81,6.82305156]
[1744352233947,35.64,116.84,116.82,17.08200176]
[1744352234247,8.5641,116.85,116.82,8.5655]
[1744352234552,15.38715156,116.85,116.82,8.5655]
[1744352234749,0.05550379,116.85,116.81,6.82305156]
[1744352234949,0.05550379,116.85,116.82,19.29540371]
[1744352235251,0.05550379,116.85,116.83,8.5646]
[1744352235646,8.61930379,116.85,116.83,8.62401753]
[1744352235848,8.61930379,116.85,116.83,0.05941753]
[1744352236044,0.05550379,116.85,116.83,0.05941753]
[1744352236553,8.61970379,116.85,116.83,0.05941753]
[1744352236856,0.05550379,116.85,116.83,0.05941753]
[1744352237055,8.5645,116.84,116.83,0.05941753]
[1744352237656,15.38755156,116.84,116.83,0.05941753]
[1744352237858,51.02755156,116.84,116.83,0.05941753]
[1744352238553,51.02755156,116.84,116.83,1.753e-05]
[1744352243759,42.46305156,116.84,116.83,1.753e-05]
[1744352243963,0.05550379,116.85,116.83,1.753e-05]
[1744352244464,8.61930379,116.85,116.83,1.753e-05]
[1744352244864,8.61930379,116.85,116.83,8.56521753]
[1744352245162,0.05550379,116.85,116.83,1.753e-05]
[1744352245958,0.05550379,116.85,116.84,8.5645]
[1744352246158,0.05550379,116.85,116.83,1.753e-05]
[1744352246864,0.05550379,116.85,116.83,8.56471753]
[1744352247967,8.61970379,116.85,116.83,1.753e-05]
[1744352248165,6.82305156,116.84,116.83,1.753e-05]
[1744352248559,15.38755156,116.84,116.83,1.753e-05]
[1744352248864,0.05550379,116.85,116.83,1.753e-05]
[1744352249162,8.5645,116.84,116.83,1.753e-05]
[1744352249367,15.38755156,116.84,116.83,1.753e-05]
[1744352253669,8.5678,116.8,116.75,11.60957029]
[1744352253873,41.80305156,116.8,116.76,12.51077529]
[1744352254059,41.80305156,116.83,116.77,19.33382685]
[1744352254268,50.36845156,116.83,116.8,8.567]
[1744352254772,8.566,116.82,116.8,0.05662361]
[1744352254961,41.85741502,116.83,116.8,0.05662361]
[1744352255470,50.42291502,116.83,116.8,8.62352361]
[1744352256070,50.42291502,116.83,116.81,8.5339628]
[1744352256268,43.59986346,116.83,116.8,8.62352361]
[1744352256468,8.5659,116.82,116.81,8.53513162]
[1744352256669,8.5659,116.82,116.8,0.05662361]
[1744352256870,35.03436346,116.83,116.8,0.05662361]
[1744352257070,0.05436346,116.83,116.81,8.5666]
[1744352257774,0.05436346,116.83,116.8,10.81732361]
[1744352257970,0.05436346,116.83,116.81,12.49606347]
[1744352258177,0.05436346,116.83,116.82,8.52991261]
[1744352258770,0.05436346,116.83,116.82,8.52908329]
[1744352259779,0.05436346,116.83,116.82,8.52778861]
[1744352260074,0.05436346,116.83,116.82,8.52777385]
[1744352261581,43.59956346,116.83,116.82,8.52777385]
[1744352261875,43.59956346,116.83,116.8,10.81712361]
[1744352262077,43.59956346,116.83,116.81,12.48926515]
[1744352262280,43.59956346,116.83,116.8,10.81712361]
[1744352262478,43.59956346,116.83,116.81,12.49066575]
[1744352262679,41.85741502,116.83,116.8,0.05662361]
[1744352262879,6.82305156,116.81,116.8,0.05662361]
[1744352263180,15.38975156,116.81,116.8,8.58624514]
[1744352263478,15.38975156,116.81,116.8,0.05662361]
[1744352276108,43.5663,116.82,116.8,8.59086472]
[1744352276303,43.5663,116.82,116.8,0.05662361]
[1744352279109,15.38975156,116.81,116.8,0.05662361]
[1744352281811,8.5667,116.81,116.8,0.05662361]
[1744352282021,15.38975156,116.81,116.8,0.05662361]
[1744352284317,35.0,116.82,116.8,12.56879332]
[1744352284614,35.0,116.82,116.81,8.54088311]
[1744352284800,35.0,116.82,116.81,17.10758311]
[1744352286701,35.0,116.82,116.81,8.54088311]
[1744352287103,41.82305156,116.82,116.81,8.54088311]
[1744352288215,41.82305156,116.82,116.8,0.05662361]
[1744352288812,41.82305156,116.82,116.81,8.54312347]
[1744352290213,50.38895156,116.82,116.81,8.54312347]
[1744352290909,8.5667,116.81,116.8,0.05662361]
[1744352292607,8.5667,116.81,116.8,8.61112228]
[1744352292807,8.5667,116.81,116.8,0.05662361]
[1744352294013,50.38935156,116.82,116.8,0.05662361]
[1744352295712,8.5667,116.81,116.8,0.05662361]
[1744352295911,8.5667,116.81,116.8,8.60883203]
[1744352296218,41.82305156,116.82,116.8,8.60883203]
[1744352296515,50.38915156,116.82,116.8,0.05662361]
[1744352297613,41.82305156,116.82,116.8,0.05662361]
[1744352298216,41.82305156,116.82,116.81,8.55793294]
[1744352299713,35.0,116.82,116.81,21.10326286]
[1744352300810,35.0,116.82,116.81,12.53656286]
[1744352301911,35.0,116.82,116.81,12.53491491]
[1744352302112,35.0,116.82,116.81,21.10161491]
[1744352302614,0.05436346,116.83,116.81,23.33291491]
[1744352302811,34.4,116.86,116.82,12.53491491]
[1744352303016,34.4,116.86,116.83,19.35796647]
[1744352303211,34.4,116.86,116.84,12.53491491]
[1744352303414,34.4,116.86,116.85,8.55628499]
[1744352303714,34.4,116.86,116.85,12.52982806]
[1744352303915,34.4,116.86,116.85,12.52977049]
[1744352304116,34.4,116.86,116.85,21.09347049]
[1744352304317,34.4,116.86,116.85,21.09151161]
[1744352304710,34.4,116.86,116.85,12.52781161]
[1744352305413,41.22305156,116.86,116.84,0.05841008]
[1744352305719,49.78645156,116.86,116.84,0.05841008]
[1744352306115,34.4,116.86,116.84,0.05841008]
[1744352306317,0.06169707,116.87,116.85,12.5107152]
[1744352306522,34.4,116.89,116.86,12.5107152]
[1744352306817,30.72002,116.9,116.87,12.50159762]
[1744352307013,30.72002,116.9,116.89,8.5608]
[1744352307219,30.72002,116.9,116.86,6.82305156]
[1744352307412,30.72002,116.9,116.87,12.48788]
[1744352307612,0.05626993,116.89,116.88,15.34746509]
[1744352307917,0.05626993,116.89,116.88,8.52441353]
[1744352308314,0.05626993,116.89,116.88,8.5616]
[1744352308517,0.05626993,116.89,116.88,17.07893889]
[1744352309511,0.05626993,116.89,116.87,0.05990478]
[1744352310119,49.76465156,116.88,116.87,0.05990478]
[1744352311115,42.9416,116.88,116.87,0.05990478]
[1744352311318,49.76465156,116.88,116.87,0.05990478]
[1744352312319,8.5648,116.84,116.82,2.2959]
[1744352312519,34.38,116.84,116.82,2.2959]
[1744352313522,34.44360249,116.84,116.82,2.35057876]
[1744352313724,34.44360249,116.84,116.82,0.05467876]
[1744352314315,19.24075098,116.83,116.82,0.05467876]
[1744352314819,8.5684,116.79,116.77,4.5635]
[1744352315824,8.63133522,116.79,116.77,4.62413768]
[1744352316925,8.63133522,116.79,116.77,2.35653768]
[1744352317126,8.5689,116.78,116.77,2.35653768]
[1744352317326,0.06293522,116.79,116.77,2.35653768]
[1744352317627,8.5689,116.78,116.77,2.35653768]
[1744352318528,8.5689,116.78,116.77,0.06063768]
[1744352323032,0.06293522,116.79,116.77,0.06063768]
[1744352323335,0.06293522,116.79,116.78,8.5689]
[1744352323627,34.94,116.83,116.77,0.06063768]
[1744352323834,34.94,116.83,116.79,8.5676]
[1744352324231,43.5056,116.83,116.79,8.5676]
[1744352324833,0.06424021,116.82,116.8,0.06351532]
[1744352325235,8.63024021,116.82,116.8,0.06351532]
[1744352325935,0.06424021,116.82,116.8,8.63051532]
[1744352327430,34.92,116.86,116.8,0.06351532]
[1744352327627,43.4834,116.86,116.81,8.50524702]
[1744352327827,43.4834,116.86,116.8,0.06351532]
[1744352328027,43.4834,116.86,116.82,8.5654]
[1744352328334,8.5638,116.85,116.82,8.5654]
[1744352328632,8.62111316,116.85,116.82,8.6196513]
[1744352328834,0.05731316,116.85,116.82,0.0542513]
[1744352329336,8.5645,116.84,116.82,0.0542513]
[1744352330334,8.5652,116.83,116.82,0.0542513]
[1744352332037,43.4852,116.83,116.82,0.0542513]
[1744352332641,8.568,116.8,116.78,2.2642]
[1744352333934,8.62741609,116.8,116.78,2.32351773]
[1744352335942,0.05941609,116.8,116.78,10.89241773]
[1744352336140,34.92,116.83,116.79,8.50628971]
[1744352336341,34.92,116.83,116.78,2.32351773]
[1744352336543,43.4857,116.83,116.8,8.5672]
[1744352337342,43.55033596,116.83,116.8,8.5672]
[1744352337542,8.566,116.82,116.79,10.7175]
[1744352337730,8.566,116.82,116.79,2.1497]
[1744352339239,8.566,116.82,116.79,10.7175]
[1744352340639,8.566,116.82,116.8,8.5084796]
[1744352340840,8.566,116.82,116.79,10.7175]
[1744352341040,8.566,116.82,116.8,8.5084796]
[1744352341336,8.566,116.82,116.79,10.7175]
[1744352342055,8.566,116.82,116.8,8.50501837]
[1744352342347,8.566,116.82,116.79,10.7175]
[1744352343049,43.55023596,116.83,116.8,8.5674]
[1744352343236,0.06463596,116.83,116.79,2.1497]
[1744352343438,0.06463596,116.83,116.8,8.50675512]
[1744352343643,0.06463596,116.83,116.81,8.5663]
[1744352343948,0.06463596,116.83,116.81,8.62315713]
[1744352345051,0.06463596,116.83,116.81,0.05685713]
[1744352346355,0.06463596,116.83,116.82,8.5659]
[1744352350063,0.06463596,116.83,116.81,8.62345713]
[1744352350261,0.06463596,116.83,116.81,0.05685713]
[1744352350652,34.88463596,116.83,116.81,0.05685713]
[1744352350852,8.5659,116.82,116.81,0.05685713]
[1744352353758,43.45033596,116.83,116.81,0.05685713]
[1744352355161,8.5659,116.82,116.81,0.05685713]
[1744352356966,43.45023596,116.83,116.81,0.05685713]
[1744352357267,34.88463596,116.83,116.81,0.05685713]
[1744352357767,43.45023596,116.83,116.81,0.05685713]
[1744352365274,43.45023596,116.83,116.82,8.54180385]
[1744352366165,34.88463596,116.83,116.82,8.54130871]
[1744352366370,34.88463596,116.83,116.82,12.51502058]
[1744352366671,34.88463596,116.83,116.82,21.08092058]
[1744352366970,0.06463596,116.83,116.82,27.91404672]
[1744352367776,0.06463596,116.83,116.82,27.91998502]
[1744352367975,43.3834,116.86,116.83,8.5645]
[1744352368177,43.3834,116.86,116.84,12.52095888]
[1744352368372,43.3834,116.86,116.85,8.54694031]
[1744352370473,34.82,116.86,116.85,8.54694031]
[1744352370677,8.62133943,116.87,116.85,12.51888338]
[1744352370870,8.62133943,116.87,116.86,8.54694031]
[1744352370871,43.44133943,116.87,116.86,8.54694031]
[1744352371376,43.44133943,116.87,116.86,8.54048427]
[1744352371579,34.87873943,116.87,116.86,12.51126138]
[1744352371777,0.05873943,116.87,116.86,8.54048427]
[1744352372277,8.62103943,116.87,116.86,8.54048427]
[1744352374180,8.62103943,116.87,116.85,8.5637]
[1744352374480,8.62103943,116.87,116.84,8.62389056]
[1744352374682,8.62103943,116.87,116.85,8.53698457]
[1744352374877,8.62103943,116.87,116.84,8.62389056]
[1744352375078,0.05873943,116.87,116.85,8.53629528]
[1744352375277,0.05873943,116.87,116.84,0.05989056]
[1744352375478,0.05873943,116.87,116.85,8.53596193]
[1744352375770,8.5634,116.86,116.84,0.05989056]
[1744352375970,6.89186557,116.87,116.85,8.5359377]
[1744352376181,15.45456557,116.87,116.84,8.62409056]
[1744352376375,15.45456557,116.87,116.85,8.53557604]
[1744352376577,15.45456557,116.87,116.84,8.62409056]
[1744352376779,15.45456557,116.87,116.85,8.53518561]
[1744352377085,8.5633,116.86,116.84,0.05989056]
[1744352377581,8.5633,116.86,116.85,8.52955951]
[1744352378671,8.5633,116.86,116.84,0.05989056]
[1744352379078,6.89186557,116.87,116.84,0.05989056]
[1744352379681,8.5634,116.86,116.84,0.05989056]
[1744352380184,8.5634,116.86,116.85,8.52643877]
[1744352380784,8.5634,116.86,116.84,0.05989056]
[1744352380983,8.5637,116.85,116.84,0.05989056]
[1744352381284,42.4237,116.85,116.84,0.05989056]
[1744352381583,42.4237,116.85,116.84,8.58904573]
[1744352382288,42.4237,116.85,116.84,0.05989056]
[1744352382685,42.4237,116.85,116.84,8.59018456]
[1744352383488,42.4237,116.85,116.84,0.05989056]
[1744352384482,8.5655,116.83,116.8,8.5671]
[1744352384785,8.5655,116.83,116.81,12.5025054]
[1744352384985,8.5655,116.83,116.82,8.53431514]
[1744352387788,8.5655,116.83,116.82,12.50257508]
[1744352388084,0.05812795,116.84,116.82,19.33570122]
[1744352388285,0.05812795,116.84,116.83,12.50257508]
[1744352388490,0.05812795,116.84,116.83,21.06208129]
[1744352389084,0.05812795,116.84,116.83,12.49688129]
[1744352392889,0.05812795,116.84,116.83,21.06208129]
[1744352393978,0.05812795,116.84,116.83,21.06358682]
[1744352394290,8.62262795,116.84,116.83,12.49838682]
[1744352394489,8.62262795,116.84,116.83,8.53050142]
[1744352394982,8.5658,116.83,116.81,0.06391181]
[1744352395187,8.5658,116.83,116.82,12.50952345]
[1744352395592,8.5658,116.83,116.82,8.5391093]
[1744352395793,8.5658,116.83,116.82,8.53986108]
[1744352396695,8.5658,116.83,116.82,12.51101295]
[1744352397194,8.5658,116.83,116.82,8.53986108]
[1744352397395,8.5658,116.83,116.82,12.51055264]
[1744352397596,8.5658,116.83,116.82,12.51055274]
[1744352397794,8.5658,116.83,116.82,8.53986108]
[1744352398091,8.5658,116.83,116.82,12.51004173]
[1744352399495,8.5658,116.83,116.82,12.50901992]
[1744352400898,0.05812795,116.84,116.82,12.50901992]
[1744352401197,0.05812795,116.84,116.83,8.53876329]
[1744352401493,0.05812795,116.84,116.83,12.50487271]
[1744352401699,33.86,116.87,116.83,19.33799885]
[1744352401999,33.86,116.87,116.85,8.5637]
[1744352402197,33.86,116.87,116.86,12.50487271]
[1744352403298,0.05534425,116.88,116.87,8.5623]
[1744352403495,30.72002,116.9,116.87,19.33440569]
[1744352403800,30.72002,116.9,116.88,19.33440569]
[1744352403993,30.72002,116.9,116.89,12.50127955]
[1744352404194,30.72002,116.9,116.89,14.65987955]
[1744352404802,8.26929585,116.9,116.89,30.05380569]
[1744352404999,0.05564972,116.91,116.89,21.49300569]
[1744352405201,33.86,116.97,116.9,19.33440569]
[1744352405401,33.86,116.97,116.92,6.83312614]
[1744352405704,40.69312614,116.97,116.93,8.53876329]
[1744352405900,8.557,116.95,116.91,15.39212614]
[1744352406102,6.83312614,116.96,116.92,12.44872902]
[1744352406290,0.05734721,116.95,116.92,0.06069126]
[1744352407001,8.5572,116.94,116.92,0.06069126]
[1744352407205,0.05734721,116.95,116.93,8.48019752]
[1744352407497,8.553,117.0,116.94,23.07162268]
[1744352407703,8.553,117.0,116.96,8.5552]
[1744352408105,8.5536,116.99,116.96,8.5552]
[1744352408493,66.85438224,117.01,116.96,8.5552]
[1744352408702,0.05984192,116.99,116.96,8.60900769]
[1744352409600,0.05984192,116.99,116.97,8.5549]
[1744352409805,688.37200533,117.08,116.98,12.37006696]
[1744352410107,33.14,117.07,117.01,8.5517]
[1744352410298,8.5494,117.05,117.01,8.5517]
[1744352410707,41.6878,117.07,116.99,43.79200533]
[1744352411003,41.6878,117.07,117.02,0.05520863]
[1744352411206,8.5484,117.06,117.02,8.60620863]
[1744352411401,33.14,117.07,117.02,0.05520863]
[1744352412108,8.5497,117.05,117.02,0.05520863]
[1744352412307,33.14,117.07,117.02,0.05520863]
[1744352412510,33.14,117.06,117.02,0.05520863]
[1744352412709,8.5504,117.04,117.02,0.05520863]
[1744352413010,33.14,117.06,117.02,0.05520863]
[1744352413308,8.5498,117.05,117.02,0.05520863]
[1744352413508,33.14,117.06,117.02,0.05520863]
[1744352413710,8.5506,117.03,117.02,0.05520863]
[1744352414008,41.6906,117.03,117.02,0.05520863]
[1744352414209,33.14,117.06,117.02,0.05520863]
[1744352415209,33.14,117.06,117.02,8.60630863]
[1744352415210,41.6887,117.06,117.02,8.60630863]
[1744352416506,8.5492,117.05,117.02,0.05520863]
[1744352417312,41.6886,117.06,117.02,8.60640863]
[1744352418814,8.5494,117.05,117.02,0.05520863]
[1744352419113,33.14,117.06,117.02,0.05520863]
[1744352419411,41.6886,117.06,117.02,8.60610863]
[1744352421514,33.14,117.06,117.02,0.05520863]
[1744352422917,33.14,117.06,117.03,8.5505]
[1744352423619,37.5108,117.09,117.02,0.05520863]
[1744352423820,37.5108,117.09,117.02,33.17520863]
[1744352424021,8.547,117.08,117.05,8.5489]
[1744352424222,37.5108,117.09,117.05,8.5489]
[1744352424416,37.5108,117.09,117.05,0.05650515]
[1744352426029,46.0573,117.09,117.05,8.60510515]
[1744352426424,43.8306,117.09,117.05,8.60510515]
[1744352426931,43.8306,117.09,117.06,8.5483]
[1744352427226,43.8306,117.09,117.05,0.05650515]
[1744352427424,33.12,117.09,117.07,8.5472]
[1744352427624,111.5458,117.1,117.07,8.5472]
[1744352427825,103.0,117.1,117.05,0.05650515]
[1744352428324,33.1,117.09,117.05,0.05650515]
[1744352428824,41.6467,117.09,117.05,8.60520515]
[1744352429928,8.5469,117.08,117.05,8.60520515]
[1744352430927,33.1,117.09,117.05,0.05650515]
[1744352431229,103.0,117.1,117.05,43.80851048]
[1744352432531,103.0,117.1,117.08,8.5462]
[1744352433033,103.0,117.1,117.08,8.6049391]
[1744352435427,103.0,117.1,117.09,8.5462]